[Event "*** Titled Tuesday Blitz"]
[Site "Chess.com"]
[Date "2018.11.06"]
[Round "3"]
[White "Jbd735"]
[Black "GMSrinath"]
[Result "0-1"]
[WhiteElo "2469"]
[BlackElo "2835"]
[TimeControl "180+2"]
[EndTime "13:39:39 PST"]
[Termination "GMSrinath won by resignation"]

1. e4 {[%clk 0:03:01.9]} 1... e5 {[%clk 0:02:59.7]} 2. Nf3 {[%clk 0:03:02.6]}
2... Nc6 {[%clk 0:03:01.1]} 3. Bb5 {[%clk 0:03:03.6]} 3... f5 {[%clk 0:03:00.8]}
4. Nc3 {[%clk 0:03:03.7]} 4... fxe4 {[%clk 0:02:59.2]} 5. Nxe4 {[%clk
0:03:03.5]} 5... Nf6 {[%clk 0:03:00.7]} 6. Qe2 {[%clk 0:02:58.8]} 6... d5 {[%clk
0:02:56]} 7. Nxe5 {[%clk 0:02:36.8]} 7... dxe4 {[%clk 0:02:49.8]} 8. Nxc6 {[%clk
0:02:30.3]} 8... bxc6 {[%clk 0:02:51.7]} 9. Bxc6+ {[%clk 0:02:27.3]} 9... Bd7
{[%clk 0:02:53.3]} 10. Bxa8 {[%clk 0:02:11.4]} 10... Qxa8 {[%clk 0:02:55.2]} 11.
O-O {[%clk 0:02:08.6]} 11... Bd6 {[%clk 0:02:54.7]} 12. Qc4 {[%clk 0:01:52.4]}
12... Qc8 {[%clk 0:02:47.1]} 13. d3 {[%clk 0:01:23.7]} 13... Be6 {[%clk
0:02:38.7]} 14. Qa4+ {[%clk 0:01:21.9]} 14... Qd7 {[%clk 0:02:38.7]} 15. Qxd7+
{[%clk 0:00:58.1]} 15... Kxd7 {[%clk 0:02:40.6]} 16. dxe4 {[%clk 0:00:57.4]}
16... Nxe4 {[%clk 0:02:42.5]} 17. Be3 {[%clk 0:00:57.5]} 17... a6 {[%clk
0:02:32.9]} 18. f3 {[%clk 0:00:54.2]} 18... Nf6 {[%clk 0:02:33.2]} 19. Rfd1
{[%clk 0:00:52.7]} 19... Kc6 {[%clk 0:02:32.4]} 20. Bd4 {[%clk 0:00:49.1]} 20...
Rb8 {[%clk 0:02:32.8]} 21. b3 {[%clk 0:00:48.7]} 21... Rf8 {[%clk 0:02:21]} 22.
c4 {[%clk 0:00:39.2]} 22... g5 {[%clk 0:02:21.4]} 23. Re1 {[%clk 0:00:35.1]}
23... Bf5 {[%clk 0:02:08.2]} 24. c5 {[%clk 0:00:20.7]} 24... Bf4 {[%clk
0:02:08.7]} 25. g3 {[%clk 0:00:21.6]} 25... Bd2 {[%clk 0:02:07]} 26. Re2 {[%clk
0:00:18.1]} 26... Ba5 {[%clk 0:02:02.9]} 27. a3 {[%clk 0:00:17.4]} 27... Nd5
{[%clk 0:01:42.6]} 28. b4 {[%clk 0:00:17.7]} 28... Bd3 {[%clk 0:01:43.9]} 29.
Re6+ {[%clk 0:00:10.4]} 29... Kd7 {[%clk 0:01:42.5]} 30. Re5 {[%clk 0:00:10.5]}
30... Kc6 {[%clk 0:01:33.9]} 31. bxa5 {[%clk 0:00:10.2]} 31... Rxf3 {[%clk
0:01:34.6]} 32. Rxg5 {[%clk 0:00:09.3]} 32... Bc4 {[%clk 0:01:27.8]} 33. Re1
{[%clk 0:00:08.6]} 33... Kb5 {[%clk 0:01:27.5]} 34. h4 {[%clk 0:00:07.9]} 34...
Rxa3 {[%clk 0:01:24.4]} 35. c6 {[%clk 0:00:06.3]} 35... Kxc6 {[%clk 0:01:23.7]}
36. Rc1 {[%clk 0:00:06.1]} 36... Ra4 {[%clk 0:01:24.1]} 37. h5 {[%clk
0:00:04.5]} 37... Kd6 {[%clk 0:01:15.4]} 38. Rg7 {[%clk 0:00:05.1]} 38... Bd3
{[%clk 0:01:14.9]} 39. g4 {[%clk 0:00:04.6]} 39... Rxd4 {[%clk 0:01:15.4]} 40.
h6 {[%clk 0:00:04.6]} 40... Bg6 {[%clk 0:01:13.2]} 41. g5 {[%clk 0:00:04.1]}
41... Rg4+ {[%clk 0:01:13.6]} 42. Kf2 {[%clk 0:00:05.3]} 42... Rxg5 {[%clk
0:01:15.3]} 43. Rd1 {[%clk 0:00:05.3]} 43... Kc6 {[%clk 0:01:12.9]} 44. Rc1+
{[%clk 0:00:06]} 44... Kb5 {[%clk 0:01:13.7]} 45. Rb1+ {[%clk 0:00:06.4]} 45...
Kxa5 {[%clk 0:01:13.3]} 46. Rd1 {[%clk 0:00:07.2]} 46... Kb5 {[%clk 0:01:13.9]}
47. Rc1 {[%clk 0:00:06.9]} 47... c5 {[%clk 0:01:13.7]} 48. Rb1+ {[%clk
0:00:07.4]} 48... Kc6 {[%clk 0:01:13.6]} 49. Ra1 {[%clk 0:00:08.2]} 49... Nb4
{[%clk 0:01:14.4]} 50. Re1 {[%clk 0:00:08.2]} 50... Nd3+ {[%clk 0:01:11.8]} 51.
Kf1 {[%clk 0:00:07.8]} 51... Nxe1 {[%clk 0:01:13.7]} 52. Kxe1 {[%clk 0:00:08.7]}
52... Rh5 {[%clk 0:01:12.3]} 0-1

[Event "*** Titled Tuesday Blitz"]
[Site "Chess.com"]
[Date "2018.11.06"]
[Round "3"]
[White "chessdjw"]
[Black "Superfelix"]
[Result "1-0"]
[WhiteElo "2589"]
[BlackElo "2409"]
[TimeControl "180+2"]
[EndTime "13:39:43 PST"]
[Termination "chessdjw won by resignation"]

1. d4 {[%clk 0:03:01.9]} 1... g6 {[%clk 0:03:00.4]} 2. c4 {[%clk 0:03:01.1]}
2... Bg7 {[%clk 0:03:00.7]} 3. Nc3 {[%clk 0:03:03]} 3... d6 {[%clk 0:03:02]} 4.
e4 {[%clk 0:03:02.8]} 4... Nc6 {[%clk 0:03:03.1]} 5. d5 {[%clk 0:03:03.5]} 5...
Nb8 {[%clk 0:03:03.2]} 6. Nf3 {[%clk 0:03:02]} 6... e6 {[%clk 0:03:04.5]} 7. Bd3
{[%clk 0:03:02.3]} 7... Bxc3+ {[%clk 0:03:05.2]} 8. bxc3 {[%clk 0:03:03]} 8...
e5 {[%clk 0:03:06.7]} 9. O-O {[%clk 0:02:59.2]} 9... Nd7 {[%clk 0:03:04.1]} 10.
Be3 {[%clk 0:02:56.9]} 10... b6 {[%clk 0:03:05.1]} 11. Nd2 {[%clk 0:02:57.4]}
11... Nc5 {[%clk 0:02:57.4]} 12. Bc2 {[%clk 0:02:58.5]} 12... Qe7 {[%clk
0:02:53.4]} 13. f4 {[%clk 0:02:58.8]} 13... f6 {[%clk 0:02:51.2]} 14. f5 {[%clk
0:02:58.7]} 14... g5 {[%clk 0:02:52]} 15. Nb3 {[%clk 0:02:51.6]} 15... Nh6
{[%clk 0:02:47.9]} 16. Nxc5 {[%clk 0:02:52]} 16... dxc5 {[%clk 0:02:49.2]} 17.
Ba4+ {[%clk 0:02:43.2]} 17... Bd7 {[%clk 0:02:41.8]} 18. Qh5+ {[%clk 0:02:36.2]}
18... Nf7 {[%clk 0:02:42.2]} 19. Bb5 {[%clk 0:02:26.8]} 19... a6 {[%clk
0:02:34.4]} 20. Bxd7+ {[%clk 0:02:27.1]} 20... Kxd7 {[%clk 0:02:34.5]} 21. a4
{[%clk 0:02:27.4]} 21... a5 {[%clk 0:02:35.4]} 22. h4 {[%clk 0:02:21.4]} 22...
h6 {[%clk 0:02:33.4]} 23. Bf2 {[%clk 0:02:00.1]} 23... Nd6 {[%clk 0:02:33.6]}
24. Qe2 {[%clk 0:02:01.1]} 24... Rag8 {[%clk 0:02:10.8]} 25. Kh2 {[%clk
0:02:01.5]} 25... Rg7 {[%clk 0:02:11.2]} 26. Rh1 {[%clk 0:01:47.2]} 26... Qf7
{[%clk 0:02:10.3]} 27. h5 {[%clk 0:01:28.3]} 27... g4 {[%clk 0:01:43.5]} 28. Kg3
{[%clk 0:01:03.6]} 28... Rg5 {[%clk 0:01:41.4]} 29. Rh4 {[%clk 0:00:59.5]} 29...
Rhg8 {[%clk 0:01:42]} 30. Rah1 {[%clk 0:00:57.7]} 30... Kc8 {[%clk 0:01:29.1]}
31. Qd3 {[%clk 0:00:58.9]} 31... Qd7 {[%clk 0:01:24.8]} 32. Be3 {[%clk
0:00:59.9]} 32... Qxa4 {[%clk 0:01:21.6]} 33. Bxg5 {[%clk 0:01:00.2]} 33... Rxg5
{[%clk 0:00:56.1]} 34. Rxg4 {[%clk 0:01:01.2]} 34... Rxg4+ {[%clk 0:00:46.9]}
35. Kxg4 {[%clk 0:01:03.1]} 35... Nxc4 {[%clk 0:00:47.1]} 36. Kf3 {[%clk
0:00:58.5]} 36... Nd6 {[%clk 0:00:48]} 37. Rh4 {[%clk 0:00:48.5]} 37... Nxf5
{[%clk 0:00:37.1]} 38. Qa6+ {[%clk 0:00:27.9]} 38... Kd7 {[%clk 0:00:34.2]} 39.
Rg4 {[%clk 0:00:29.3]} 39... Ne7 {[%clk 0:00:20.7]} 40. Rg7 {[%clk 0:00:29.9]}
40... f5 {[%clk 0:00:19.1]} 41. Qd3 {[%clk 0:00:19.9]} 41... fxe4+ {[%clk
0:00:16.7]} 42. Qxe4 {[%clk 0:00:21.8]} 42... Qd1+ {[%clk 0:00:17.2]} 43. Kg3
{[%clk 0:00:21.4]} 43... Qb3 {[%clk 0:00:16.3]} 44. Qxe5 {[%clk 0:00:21.2]} 1-0

[Event "*** Titled Tuesday Blitz"]
[Site "Chess.com"]
[Date "2018.11.06"]
[Round "3"]
[White "DonPreuss"]
[Black "ZeroRealtorFade"]
[Result "0-1"]
[WhiteElo "2131"]
[BlackElo "2220"]
[TimeControl "180+2"]
[EndTime "13:39:45 PST"]
[Termination "ZeroRealtorFade won by resignation"]

1. d4 {[%clk 0:03:01.9]} 1... Nf6 {[%clk 0:03:00.5]} 2. Nc3 {[%clk 0:03:02.2]}
2... d5 {[%clk 0:03:01.2]} 3. e4 {[%clk 0:03:03.8]} 3... dxe4 {[%clk 0:03:02]}
4. f3 {[%clk 0:03:05.2]} 4... e3 {[%clk 0:03:03.5]} 5. Bxe3 {[%clk 0:03:05.6]}
5... e6 {[%clk 0:03:04.9]} 6. Bd3 {[%clk 0:03:06.7]} 6... Bb4 {[%clk 0:03:06.1]}
7. Ne2 {[%clk 0:03:08]} 7... O-O {[%clk 0:03:05.6]} 8. O-O {[%clk 0:03:08.6]}
8... Nc6 {[%clk 0:03:05.1]} 9. Qe1 {[%clk 0:03:09]} 9... Nd5 {[%clk 0:03:04.1]}
10. Bd2 {[%clk 0:03:07.9]} 10... Nxc3 {[%clk 0:03:00.1]} 11. bxc3 {[%clk
0:03:09.8]} 11... Be7 {[%clk 0:03:00.9]} 12. Qg3 {[%clk 0:03:08.9]} 12... Bf6
{[%clk 0:02:57.1]} 13. Nf4 {[%clk 0:02:53.9]} 13... g6 {[%clk 0:02:52.8]} 14.
Nh5 {[%clk 0:02:54.8]} 14... Bh4 {[%clk 0:02:43.7]} 15. Qh3 {[%clk 0:01:56.9]}
15... e5 {[%clk 0:02:41.1]} 16. g4 {[%clk 0:01:56.1]} 16... gxh5 {[%clk
0:02:34.1]} 17. Bh6 {[%clk 0:01:53.1]} 17... Re8 {[%clk 0:02:07.3]} 18. Qg2
{[%clk 0:01:49]} 18... Kh8 {[%clk 0:02:01.8]} 19. Kh1 {[%clk 0:01:26.8]} 19...
Rg8 {[%clk 0:01:58.5]} 20. Qe2 {[%clk 0:01:25.2]} 20... Qf6 {[%clk 0:01:21.2]}
21. g5 {[%clk 0:01:12.4]} 21... Bxg5 {[%clk 0:01:14.6]} 22. Bxg5 {[%clk
0:01:12.4]} 22... Rxg5 {[%clk 0:01:05.9]} 23. dxe5 {[%clk 0:01:10.6]} 23... Rxe5
{[%clk 0:00:43.6]} 24. Qf2 {[%clk 0:00:53.7]} 24... Bf5 {[%clk 0:00:34.3]} 25.
f4 {[%clk 0:00:48.7]} 25... Rd5 {[%clk 0:00:19.8]} 26. Rae1 {[%clk 0:00:37.9]}
26... Rg8 {[%clk 0:00:17.3]} 27. Be4 {[%clk 0:00:32.1]} 27... Bxe4+ {[%clk
0:00:16.4]} 28. Rxe4 {[%clk 0:00:34]} 28... Qxc3 {[%clk 0:00:15.8]} 29. Rfe1
{[%clk 0:00:30.6]} 29... Qf6 {[%clk 0:00:14.5]} 30. Re8 {[%clk 0:00:25.9]} 30...
Rd8 {[%clk 0:00:11.6]} 31. R8e3 {[%clk 0:00:21.1]} 31... Nd4 {[%clk 0:00:11.8]}
32. c3 {[%clk 0:00:19.5]} 32... Nf5 {[%clk 0:00:12.6]} 33. Re5 {[%clk
0:00:20.4]} 33... Qc6+ {[%clk 0:00:13.5]} 34. R5e4 {[%clk 0:00:18.3]} 34... Nd6
{[%clk 0:00:14.3]} 35. Qd4+ {[%clk 0:00:19]} 35... Rg7 {[%clk 0:00:14.6]} 36. h4
{[%clk 0:00:15.9]} 36... f5 {[%clk 0:00:15.2]} 37. Kh2 {[%clk 0:00:10.8]} 37...
fxe4 {[%clk 0:00:15.9]} 38. Qf6 {[%clk 0:00:11.2]} 38... Rg8 {[%clk 0:00:16.7]}
39. Re2 {[%clk 0:00:11.8]} 39... Qxc3 {[%clk 0:00:17.6]} 0-1

[Event "*** Titled Tuesday Blitz"]
[Site "Chess.com"]
[Date "2018.11.06"]
[Round "3"]
[White "GianmarcoVaR"]
[Black "TrimitziosP7"]
[Result "1-0"]
[WhiteElo "2522"]
[BlackElo "2683"]
[TimeControl "180+2"]
[EndTime "13:39:47 PST"]
[Termination "GianmarcoVaR won by resignation"]

1. d4 {[%clk 0:03:01.9]} 1... Nf6 {[%clk 0:02:59.8]} 2. c4 {[%clk 0:03:02.9]}
2... e6 {[%clk 0:03:00.6]} 3. g3 {[%clk 0:03:03.5]} 3... c5 {[%clk 0:03:00.9]}
4. d5 {[%clk 0:03:04.3]} 4... exd5 {[%clk 0:03:02.7]} 5. cxd5 {[%clk 0:03:05.7]}
5... b5 {[%clk 0:03:04]} 6. Nf3 {[%clk 0:03:00.5]} 6... d6 {[%clk 0:03:04.1]} 7.
e4 {[%clk 0:03:00.2]} 7... a6 {[%clk 0:03:03.1]} 8. Nbd2 {[%clk 0:02:53.1]} 8...
g6 {[%clk 0:03:00.3]} 9. a4 {[%clk 0:02:50.6]} 9... b4 {[%clk 0:03:00.4]} 10.
Bg2 {[%clk 0:02:36.2]} 10... Bg7 {[%clk 0:03:00.9]} 11. O-O {[%clk 0:02:37.2]}
11... O-O {[%clk 0:03:01.4]} 12. Re1 {[%clk 0:02:24.8]} 12... a5 {[%clk
0:03:01.6]} 13. Qc2 {[%clk 0:02:19]} 13... Ba6 {[%clk 0:03:00.9]} 14. Nc4 {[%clk
0:02:19.9]} 14... Bxc4 {[%clk 0:03:00]} 15. Qxc4 {[%clk 0:02:20.7]} 15... Nbd7
{[%clk 0:03:01.3]} 16. Bf4 {[%clk 0:02:17.6]} 16... Ne8 {[%clk 0:02:59.5]} 17.
Bg5 {[%clk 0:02:11.3]} 17... Bf6 {[%clk 0:02:52.9]} 18. Bxf6 {[%clk 0:02:10.1]}
18... Qxf6 {[%clk 0:02:54.8]} 19. Qb5 {[%clk 0:02:06.5]} 19... Ne5 {[%clk
0:02:50.7]} 20. Nd2 {[%clk 0:02:06.4]} 20... Nc7 {[%clk 0:02:43.8]} 21. Qe2
{[%clk 0:02:06.2]} 21... g5 {[%clk 0:02:40.3]} 22. Bh3 {[%clk 0:02:04]} 22...
Qg6 {[%clk 0:02:36.8]} 23. Bf5 {[%clk 0:02:04.3]} 23... Qg7 {[%clk 0:02:36.3]}
24. Kg2 {[%clk 0:01:57]} 24... Ne8 {[%clk 0:02:22.7]} 25. Rac1 {[%clk
0:01:55.1]} 25... Qf6 {[%clk 0:02:21.5]} 26. f4 {[%clk 0:00:45.4]} 26... Ng6
{[%clk 0:02:20.4]} 27. Bxg6 {[%clk 0:00:42.6]} 27... hxg6 {[%clk 0:02:18.3]} 28.
e5 {[%clk 0:00:43.7]} 28... Qd8 {[%clk 0:02:15.4]} 29. e6 {[%clk 0:00:43.8]}
29... Qe7 {[%clk 0:02:12.1]} 30. fxg5 {[%clk 0:00:41.8]} 30... Ng7 {[%clk
0:02:07.7]} 31. Ne4 {[%clk 0:00:41.2]} 31... Ne8 {[%clk 0:01:51]} 32. Rf1 {[%clk
0:00:30]} 32... fxe6 {[%clk 0:01:46.1]} 33. dxe6 {[%clk 0:00:26.9]} 33... Qxe6
{[%clk 0:01:42.2]} 34. Rxf8+ {[%clk 0:00:22.7]} 34... Kxf8 {[%clk 0:01:44.1]}
35. Qf3+ {[%clk 0:00:23.9]} 35... Qf7 {[%clk 0:01:37.9]} 36. Nf6 {[%clk
0:00:21.7]} 36... Ra7 {[%clk 0:01:35.3]} 37. Re1 {[%clk 0:00:18.1]} 37... Nxf6
{[%clk 0:01:35.3]} 38. gxf6 {[%clk 0:00:18.8]} 38... Qb7 {[%clk 0:01:36.8]} 39.
Re4 {[%clk 0:00:13.8]} 39... d5 {[%clk 0:01:19.8]} 40. Re7 {[%clk 0:00:14.6]}
40... Qa8 {[%clk 0:01:17.1]} 41. Qe2 {[%clk 0:00:10.8]} 41... d4+ {[%clk
0:01:10.9]} 42. Kg1 {[%clk 0:00:11]} 42... Ra6 {[%clk 0:01:10.7]} 43. Qe5 {[%clk
0:00:09.8]} 43... Qd8 {[%clk 0:01:00.5]} 44. Qg5 {[%clk 0:00:06.3]} 44... d3
{[%clk 0:00:31.6]} 45. Qh6+ {[%clk 0:00:06.2]} 1-0

[Event "*** Titled Tuesday Blitz"]
[Site "Chess.com"]
[Date "2018.11.06"]
[Round "3"]
[White "wadsy27"]
[Black "DawidCzerw"]
[Result "1/2-1/2"]
[WhiteElo "2352"]
[BlackElo "2243"]
[TimeControl "180+2"]
[EndTime "13:39:49 PST"]
[Termination "Game drawn by repetition"]

1. c4 {[%clk 0:03:01.7]} 1... c5 {[%clk 0:03:00.9]} 2. g3 {[%clk 0:03:01.6]}
2... Nc6 {[%clk 0:03:00.8]} 3. Bg2 {[%clk 0:02:59.9]} 3... g6 {[%clk 0:03:02]}
4. Nc3 {[%clk 0:02:58.1]} 4... Bg7 {[%clk 0:03:03.3]} 5. Nf3 {[%clk 0:02:59.4]}
5... e5 {[%clk 0:03:04.4]} 6. O-O {[%clk 0:02:58.7]} 6... Nge7 {[%clk
0:03:05.8]} 7. a3 {[%clk 0:02:58.9]} 7... a5 {[%clk 0:03:06.1]} 8. Ne1 {[%clk
0:02:58.7]} 8... O-O {[%clk 0:03:00.4]} 9. Nc2 {[%clk 0:02:59.7]} 9... d6 {[%clk
0:03:01.6]} 10. Ne3 {[%clk 0:03:00.9]} 10... Rb8 {[%clk 0:02:56.2]} 11. d3
{[%clk 0:02:56.1]} 11... h6 {[%clk 0:02:46.1]} 12. Bd2 {[%clk 0:02:52.7]} 12...
Kh7 {[%clk 0:02:44.3]} 13. Rb1 {[%clk 0:02:51.5]} 13... f5 {[%clk 0:02:45]} 14.
Ned5 {[%clk 0:02:47.1]} 14... Nxd5 {[%clk 0:02:35.1]} 15. Nxd5 {[%clk 0:02:36]}
15... Bd7 {[%clk 0:02:09.5]} 16. b4 {[%clk 0:02:32.5]} 16... axb4 {[%clk
0:02:08.5]} 17. axb4 {[%clk 0:02:33.2]} 17... b6 {[%clk 0:02:08.6]} 18. b5
{[%clk 0:02:29.1]} 18... Ne7 {[%clk 0:02:04.7]} 19. Nxe7 {[%clk 0:02:22.9]}
19... Qxe7 {[%clk 0:02:06.6]} 20. Ra1 {[%clk 0:02:23.7]} 20... Bc8 {[%clk
0:01:58.9]} 21. Bc3 {[%clk 0:01:55.3]} 21... Rf7 {[%clk 0:01:38.6]} 22. Qc2
{[%clk 0:01:47.9]} 22... Bb7 {[%clk 0:01:34.3]} 23. Ra7 {[%clk 0:01:48.1]} 23...
Qe6 {[%clk 0:01:32.7]} 24. Rfa1 {[%clk 0:01:36.3]} 24... f4 {[%clk 0:01:13.8]}
25. Bxb7 {[%clk 0:01:14.6]} 25... Rbxb7 {[%clk 0:01:15.7]} 26. Rxb7 {[%clk
0:01:16.1]} 26... Rxb7 {[%clk 0:01:17.6]} 27. Ra6 {[%clk 0:01:15.3]} 27... fxg3
{[%clk 0:01:10.5]} 28. hxg3 {[%clk 0:01:15.3]} 28... h5 {[%clk 0:01:08.9]} 29.
e4 {[%clk 0:01:06.6]} 29... h4 {[%clk 0:01:03.3]} 30. Qe2 {[%clk 0:01:06.7]}
30... Qh3 {[%clk 0:00:52.4]} 31. Qf3 {[%clk 0:00:59.7]} 31... Bh6 {[%clk
0:00:47.3]} 32. Qg2 {[%clk 0:00:59.6]} 32... Qg4 {[%clk 0:00:46]} 33. gxh4
{[%clk 0:00:41.2]} 33... Qxh4 {[%clk 0:00:42.6]} 34. Qg3 {[%clk 0:00:38.9]}
34... Qh5 {[%clk 0:00:41.1]} 35. Kg2 {[%clk 0:00:36.5]} 35... Kg7 {[%clk
0:00:32.6]} 36. Ra1 {[%clk 0:00:23.8]} 36... Rf7 {[%clk 0:00:32.4]} 37. Rh1
{[%clk 0:00:24.4]} 37... Qe2 {[%clk 0:00:32.3]} 38. Qh4 {[%clk 0:00:12.2]} 38...
Qf3+ {[%clk 0:00:32.4]} 39. Kg1 {[%clk 0:00:12.6]} 39... Qd1+ {[%clk 0:00:30.2]}
40. Kg2 {[%clk 0:00:10.8]} 40... Qf3+ {[%clk 0:00:31]} 41. Kg1 {[%clk
0:00:11.3]} 41... Qd1+ {[%clk 0:00:20.7]} 42. Kg2 {[%clk 0:00:11.6]} 42... Qf3+
{[%clk 0:00:21.8]} 43. Kg1 {[%clk 0:00:08.9]} 43... Qd1+ {[%clk 0:00:22.6]} 44.
Kg2 {[%clk 0:00:09.9]} 44... Qf3+ {[%clk 0:00:23.1]} 1/2-1/2

[Event "*** Titled Tuesday Blitz"]
[Site "Chess.com"]
[Date "2018.11.06"]
[Round "3"]
[White "Chessialist"]
[Black "poummba"]
[Result "1-0"]
[WhiteElo "2631"]
[BlackElo "2400"]
[TimeControl "180+2"]
[EndTime "13:39:59 PST"]
[Termination "Chessialist won by resignation"]

1. c4 {[%clk 0:03:01.9]} 1... g6 {[%clk 0:03:00.3]} 2. Nc3 {[%clk 0:03:02.3]}
2... Bg7 {[%clk 0:03:01.9]} 3. g3 {[%clk 0:03:03.6]} 3... d6 {[%clk 0:03:02.5]}
4. Bg2 {[%clk 0:03:05.1]} 4... e5 {[%clk 0:03:03.3]} 5. e3 {[%clk 0:03:06.1]}
5... Nc6 {[%clk 0:03:00.6]} 6. Nge2 {[%clk 0:03:06.7]} 6... h5 {[%clk
0:03:00.8]} 7. h4 {[%clk 0:03:07]} 7... Nf6 {[%clk 0:02:55.7]} 8. a3 {[%clk
0:03:07.8]} 8... a5 {[%clk 0:02:55.7]} 9. O-O {[%clk 0:03:06.5]} 9... Bg4 {[%clk
0:02:56.2]} 10. d3 {[%clk 0:03:06.8]} 10... Qd7 {[%clk 0:02:56.4]} 11. Rb1
{[%clk 0:03:07.9]} 11... Bh3 {[%clk 0:02:55.2]} 12. b4 {[%clk 0:03:08.4]} 12...
axb4 {[%clk 0:02:56.6]} 13. axb4 {[%clk 0:03:09.3]} 13... Bxg2 {[%clk
0:02:58.2]} 14. Kxg2 {[%clk 0:03:10]} 14... O-O {[%clk 0:02:57]} 15. b5 {[%clk
0:03:10.1]} 15... Ne7 {[%clk 0:02:55.9]} 16. e4 {[%clk 0:03:04.4]} 16... c6
{[%clk 0:02:47.8]} 17. bxc6 {[%clk 0:03:01.8]} 17... bxc6 {[%clk 0:02:49.1]} 18.
Bg5 {[%clk 0:03:03.5]} 18... d5 {[%clk 0:02:43.5]} 19. cxd5 {[%clk 0:02:55.7]}
19... cxd5 {[%clk 0:02:44.6]} 20. Bxf6 {[%clk 0:02:25.5]} 20... Bxf6 {[%clk
0:02:44.2]} 21. Rb5 {[%clk 0:02:25.7]} 21... d4 {[%clk 0:02:32.8]} 22. Rd5
{[%clk 0:02:21.6]} 22... Qe6 {[%clk 0:02:13.2]} 23. Rc5 {[%clk 0:01:52.1]} 23...
dxc3 {[%clk 0:02:11.9]} 24. Nxc3 {[%clk 0:01:53.2]} 24... Rfc8 {[%clk
0:02:10.5]} 25. Rxc8+ {[%clk 0:01:52.2]} 25... Rxc8 {[%clk 0:02:11.1]} 26. Ne2
{[%clk 0:01:51.6]} 26... Nc6 {[%clk 0:02:02.1]} 27. f4 {[%clk 0:01:51.1]} 27...
Qg4 {[%clk 0:01:54.1]} 28. f5 {[%clk 0:01:43.6]} 28... Nd4 {[%clk 0:01:47.3]}
29. Nxd4 {[%clk 0:01:40.5]} 29... Qxd1 {[%clk 0:01:48.2]} 30. Rxd1 {[%clk
0:01:42.4]} 30... exd4 {[%clk 0:01:47.8]} 31. fxg6 {[%clk 0:01:43.9]} 31... Rc2+
{[%clk 0:01:46.2]} 32. Kf3 {[%clk 0:01:44.3]} 32... fxg6 {[%clk 0:01:47.6]} 33.
g4 {[%clk 0:01:36.7]} 33... Bxh4 {[%clk 0:01:32.9]} 34. gxh5 {[%clk 0:01:37.6]}
34... gxh5 {[%clk 0:01:30.3]} 35. e5 {[%clk 0:01:38.8]} 35... Kf7 {[%clk
0:01:22.2]} 36. Rh1 {[%clk 0:01:33.7]} 36... Bf2 {[%clk 0:00:51]} 37. Rxh5
{[%clk 0:01:33.4]} 37... Ke6 {[%clk 0:00:50.4]} 38. Ke4 {[%clk 0:01:33.2]} 38...
Be3 {[%clk 0:00:45.5]} 39. Rf5 {[%clk 0:01:27.9]} 39... Rf2 {[%clk 0:00:38.5]}
40. Rf8 {[%clk 0:01:02]} 40... Rh2 {[%clk 0:00:11.8]} 41. Re8+ {[%clk
0:01:02.3]} 41... Kd7 {[%clk 0:00:12]} 42. Rg8 {[%clk 0:00:59.9]} 42... Rh6
{[%clk 0:00:06.7]} 43. Kd5 {[%clk 0:00:59.1]} 43... Ra6 {[%clk 0:00:06.3]} 44.
Rg7+ {[%clk 0:00:58.8]} 44... Ke8 {[%clk 0:00:07.5]} 45. Rb7 {[%clk 0:00:59.2]}
45... Rh6 {[%clk 0:00:04.8]} 46. Ra7 {[%clk 0:00:53.3]} 46... Rb6 {[%clk
0:00:05.1]} 47. Rh7 {[%clk 0:00:50.9]} 47... Ra6 {[%clk 0:00:03.8]} 48. Rb7
{[%clk 0:00:51.6]} 48... Rg6 {[%clk 0:00:04.7]} 49. Rh7 {[%clk 0:00:52.1]} 49...
Ra6 {[%clk 0:00:05.2]} 50. Rb7 {[%clk 0:00:53]} 50... Rf6 {[%clk 0:00:06.1]} 51.
exf6 {[%clk 0:00:53.1]} 51... Kf8 {[%clk 0:00:06.5]} 52. Ke6 {[%clk 0:00:53.9]}
1-0

[Event "*** Titled Tuesday Blitz"]
[Site "Chess.com"]
[Date "2018.11.06"]
[Round "3"]
[White "Markov_Mikhail"]
[Black "RichardLeyvaP"]
[Result "0-1"]
[WhiteElo "2687"]
[BlackElo "2469"]
[TimeControl "180+2"]
[EndTime "13:40:03 PST"]
[Termination "RichardLeyvaP won by resignation"]

1. c4 {[%clk 0:02:44.5]} 1... e5 {[%clk 0:02:56.7]} 2. Nc3 {[%clk 0:02:45]} 2...
Nc6 {[%clk 0:02:44.1]} 3. Nf3 {[%clk 0:02:45.7]} 3... Nf6 {[%clk 0:02:36.8]} 4.
a3 {[%clk 0:02:45.7]} 4... Be7 {[%clk 0:02:26.1]} 5. d4 {[%clk 0:02:44.2]} 5...
exd4 {[%clk 0:02:22]} 6. Nxd4 {[%clk 0:02:46.1]} 6... O-O {[%clk 0:02:20.5]} 7.
g3 {[%clk 0:02:47.3]} 7... Ne5 {[%clk 0:02:15.4]} 8. e4 {[%clk 0:02:30]} 8... d6
{[%clk 0:02:15.7]} 9. h3 {[%clk 0:02:30.7]} 9... Re8 {[%clk 0:01:50.3]} 10. f4
{[%clk 0:02:24]} 10... Nc6 {[%clk 0:01:51.1]} 11. Bg2 {[%clk 0:02:24.5]} 11...
Nxd4 {[%clk 0:01:14.4]} 12. Qxd4 {[%clk 0:02:25.2]} 12... Nh5 {[%clk 0:01:16]}
13. Qd3 {[%clk 0:02:22.8]} 13... Nxg3 {[%clk 0:01:08.5]} 14. Rg1 {[%clk
0:02:18.4]} 14... Bh4 {[%clk 0:01:05.6]} 15. Kd1 {[%clk 0:02:19.5]} 15... f5
{[%clk 0:01:01.3]} 16. Bd2 {[%clk 0:01:31.5]} 16... c6 {[%clk 0:00:54.3]} 17.
Be1 {[%clk 0:01:08.9]} 17... Qb6 {[%clk 0:00:31.7]} 18. c5 {[%clk 0:00:38]}
18... Qxc5 {[%clk 0:00:32.5]} 19. Rf1 {[%clk 0:00:33.2]} 19... Nxf1 {[%clk
0:00:31.7]} 20. Qxf1 {[%clk 0:00:21.4]} 20... Bxe1 {[%clk 0:00:31.4]} 21. Qxe1
{[%clk 0:00:23.3]} 21... fxe4 {[%clk 0:00:32.3]} 22. Qg3 {[%clk 0:00:22.8]}
22... d5 {[%clk 0:00:31.7]} 23. Rc1 {[%clk 0:00:22.9]} 23... Qd4+ {[%clk
0:00:28.9]} 24. Ke1 {[%clk 0:00:23.9]} 24... Bf5 {[%clk 0:00:22.9]} 25. b4
{[%clk 0:00:24.9]} 25... e3 {[%clk 0:00:18]} 26. Ne2 {[%clk 0:00:25.6]} 26...
Qd2+ {[%clk 0:00:18.2]} 27. Kf1 {[%clk 0:00:27.2]} 27... Bd3 {[%clk 0:00:19.2]}
28. Re1 {[%clk 0:00:28.8]} 28... Re6 {[%clk 0:00:17.6]} 29. Bf3 {[%clk
0:00:29.9]} 29... Rg6 {[%clk 0:00:18.5]} 30. Qh4 {[%clk 0:00:30]} 30... Rf8
{[%clk 0:00:19.3]} 31. b5 {[%clk 0:00:29.4]} 31... Qb2 {[%clk 0:00:09.6]} 32.
bxc6 {[%clk 0:00:27.8]} 32... bxc6 {[%clk 0:00:11.5]} 33. a4 {[%clk 0:00:29.7]}
33... Qf6 {[%clk 0:00:12.2]} 34. Qxf6 {[%clk 0:00:25]} 34... Rfxf6 {[%clk
0:00:14.1]} 35. Rd1 {[%clk 0:00:26.8]} 35... Bxe2+ {[%clk 0:00:12.9]} 36. Kxe2
{[%clk 0:00:28.7]} 36... Rxf4 {[%clk 0:00:14.2]} 37. Rb1 {[%clk 0:00:30.1]}
37... Rxa4 {[%clk 0:00:14.2]} 38. Rb7 {[%clk 0:00:29.7]} 38... Ra2+ {[%clk
0:00:14.5]} 39. Kd3 {[%clk 0:00:30.9]} 39... Ra3+ {[%clk 0:00:15.3]} 40. Kd4
{[%clk 0:00:31.6]} 40... Rf6 {[%clk 0:00:15.8]} 41. Bg4 {[%clk 0:00:32.6]} 41...
h6 {[%clk 0:00:15.7]} 42. Bd1 {[%clk 0:00:29.7]} 42... Rf4+ {[%clk 0:00:15.9]}
43. Kc5 {[%clk 0:00:30]} 43... Rc4+ {[%clk 0:00:16.8]} 44. Kd6 {[%clk
0:00:31.6]} 44... Rc1 {[%clk 0:00:17.9]} 45. Bg4 {[%clk 0:00:31.5]} 45... Rg1
{[%clk 0:00:17.3]} 46. Bf5 {[%clk 0:00:32.8]} 46... Rf1 {[%clk 0:00:14.7]} 47.
Bg6 {[%clk 0:00:30.7]} 47... Rf6+ {[%clk 0:00:15.3]} 48. Ke7 {[%clk 0:00:31]}
48... Rxg6 {[%clk 0:00:17.2]} 49. Rb8+ {[%clk 0:00:32]} 49... Kh7 {[%clk
0:00:18.4]} 0-1